bitfinex-derivatives/quotes_SOLF0:USTF0_20251202
["timestamp","ask_amount","ask_price","bid_price","bid_amount"]
[1764703035126,9.67390824,140.2,140.17,0.05335169]
[1764703035316,6.16938538,140.19,140.17,0.05335169]
[1764703035715,12.58808538,140.19,140.17,0.05335169]
[1764703035917,3.21,140.18,140.17,0.05335169]
[1764703043830,9.6291,140.18,140.17,0.05335169]
[1764703046234,3.21,140.18,140.17,0.05335169]
[1764703046537,64.31,140.18,140.17,0.05335169]
[1764703046937,70.7291,140.18,140.17,0.05335169]
[1764703049935,3.21,140.15,140.13,11.96]
[1764703050141,67.28938538,140.14,140.13,11.96]
[1764703050938,73.71028538,140.14,140.13,11.96]
[1764703051350,61.16574452,140.15,140.13,15.23]
[1764703051559,70.79624452,140.15,140.13,11.96]
[1764703052042,3.21,140.14,140.13,11.96]
[1764703052739,70.79624452,140.15,140.13,11.96]
[1764703054437,64.37574452,140.15,140.13,11.96]
[1764703055943,3.25574452,140.15,140.13,11.96]
[1764703056145,64.37574452,140.15,140.13,11.96]
[1764703056842,3.25574452,140.15,140.13,11.96]
[1764703057046,3.21,140.14,140.13,11.96]
[1764703058046,3.25574452,140.15,140.13,11.96]
[1764703058248,3.25574452,140.15,140.13,15.15]
[1764703058839,0.04574452,140.15,140.13,11.96]
[1764703059041,0.04574452,140.15,140.13,15.07]
[1764703059448,3.01574452,140.15,140.13,15.07]
[1764703059949,0.04574452,140.15,140.14,3.11]
[1764703060248,0.04574452,140.15,140.13,15.07]
[1764703060848,2.97,140.2,140.14,3.11]
[1764703061150,2.97,140.18,140.14,3.11]
[1764703062045,0.04669905,140.17,140.15,3.15947189]
[1764703062544,6.46629905,140.17,140.15,3.15947189]
[1764703062844,9.43629905,140.17,140.15,0.04947189]
[1764703063750,9.43629905,140.17,140.15,3.15947189]
[1764703065547,9.43629905,140.17,140.15,0.04947189]
[1764703068956,0.04669905,140.17,140.15,3.15947189]
[1764703069152,0.04669905,140.17,140.16,9.71066635]
[1764703069353,70.4681,140.21,140.17,3.11]
[1764703069551,61.08,140.22,140.18,3.11]
[1764703069745,64.05,140.23,140.19,9.71066635]
[1764703069944,64.05,140.23,140.2,3.11]
[1764703070346,64.10312391,140.23,140.2,3.16313688]
[1764703070751,2.97,140.22,140.2,3.16313688]
[1764703071850,2.97,140.22,140.2,0.05313688]
[1764703071851,9.3875,140.22,140.2,0.05313688]
[1764703072056,7.60071744,140.21,140.2,0.05313688]
[1764703072449,2.97,140.21,140.2,0.05313688]
[1764703076161,9.3895,140.18,140.15,6.60066635]
[1764703076356,9.3895,140.18,140.15,3.11]
[1764703077353,9.44098801,140.18,140.15,3.16050147]
[1764703078959,6.4196,140.17,140.15,3.16050147]
[1764703079748,3.02148801,140.18,140.15,3.16050147]
[1764703080555,9.44068801,140.18,140.15,3.16050147]
[1764703080861,3.02148801,140.18,140.15,3.16050147]
[1764703081859,2.97,140.22,140.17,3.11]
[1764703082058,61.12,140.24,140.19,3.11]
[1764703082258,61.12,140.24,140.2,3.11]
[1764703082455,6.4163,140.25,140.2,3.11]
[1764703082456,2.97,140.26,140.2,3.11]
[1764703082757,2.97,140.29,140.22,3.11]
[1764703082968,0.04933711,140.27,140.25,3.11]
[1764703086365,3.01933711,140.27,140.24,3.16270466]
[1764703086564,0.04933711,140.27,140.24,3.16270466]
[1764703087465,0.04933711,140.27,140.25,9.3]
[1764703087862,0.04933711,140.27,140.25,12.41]
[1764703090960,0.04933711,140.27,140.26,3.09]
[1764703093571,0.04933711,140.27,140.25,12.39]
[1764703093962,0.04933711,140.27,140.25,9.3]
[1764703093963,3.04933711,140.27,140.25,9.3]
[1764703095079,7.63071744,140.26,140.25,9.3]
[1764703095672,68.73071744,140.26,140.25,9.3]
[1764703098278,3.04933711,140.27,140.25,12.39]
[1764703098467,64.14933711,140.27,140.24,0.05270466]
[1764703098665,3.0,140.26,140.24,0.05270466]
[1764703099167,9.4155,140.26,140.24,0.05270466]
[1764703099371,3.0,140.25,140.24,0.05270466]
[1764703103876,64.1,140.25,140.24,0.05270466]
[1764703104274,3.0,140.25,140.24,0.05270466]
[1764703104474,3.0,140.26,140.24,0.05270466]
[1764703104671,3.0,140.25,140.24,0.05270466]
[1764703105375,9.4159,140.25,140.24,0.05270466]
[1764703106972,70.5159,140.25,140.24,0.05270466]
[1764703107375,9.4159,140.25,140.24,0.05270466]
[1764703107576,67.5159,140.25,140.24,0.05270466]
[1764703107775,3.04933711,140.27,140.24,3.14270466]
[1764703108077,3.04933711,140.27,140.24,0.05270466]
[1764703110684,9.46443711,140.27,140.24,0.05270466]
[1764703111184,3.0,140.26,140.24,0.05270466]
[1764703112580,3.0,140.25,140.24,0.05270466]
[1764703116385,5.96011286,140.25,140.24,0.05270466]
[1764703117881,9.5864,140.24,140.23,12.90096329]
[1764703118190,3.17,140.23,140.21,7.99]
[1764703118389,3.17,140.22,140.21,7.99]
[1764703119685,9.5873,140.22,140.21,7.99]
[1764703128501,64.11,140.22,140.21,7.99]
[1764703133197,64.11,140.22,140.21,4.71]
[1764703134792,10.27523444,140.23,140.21,7.93]
[1764703134993,10.27523444,140.23,140.21,4.71]
[1764703134994,61.08,140.22,140.21,4.71]
[1764703135300,61.93,140.22,140.21,4.71]
[1764703135601,61.08,140.22,140.21,4.71]
[1764703135791,61.93,140.22,140.21,4.71]
[1764703140214,61.08,140.22,140.21,4.71]
[1764703140496,61.08,140.22,140.21,7.93]
[1764703140700,0.85,140.2,140.15,3.22]
[1764703140897,0.85,140.17,140.13,3.22]
[1764703141098,61.95,140.17,140.13,3.22]
[1764703141406,68.3697,140.17,140.13,3.22]
[1764703141903,68.3697,140.17,140.11,16.17584428]
[1764703141904,0.04902722,140.16,140.14,3.26491568]
[1764703144204,6.46902722,140.16,140.14,3.26491568]
[1764703144401,0.89902722,140.16,140.14,0.04491568]
[1764703144707,3.81011286,140.15,140.14,0.04491568]
[1764703144910,10.23061286,140.15,140.14,0.04491568]
[1764703145090,3.77011286,140.12,140.11,9.57]
[1764703145402,3.77011286,140.12,140.09,11.78]
[1764703145403,64.87011286,140.12,140.09,15.0]
[1764703145991,64.91546165,140.12,140.09,15.05389482]
[1764703146700,71.33736165,140.12,140.09,15.05389482]
[1764703146896,0.81,140.11,140.09,11.83389482]
[1764703147698,0.81,140.11,140.09,15.05389482]
[1764703148101,71.33736165,140.12,140.09,15.05389482]
[1764703148300,64.91546165,140.12,140.09,15.05389482]
[1764703148506,0.04534879,140.12,140.1,3.22]
[1764703150101,0.81,140.11,140.09,11.83389482]
[1764703150402,3.00546165,140.12,140.09,14.82389482]
[1764703150609,3.81546165,140.12,140.09,14.82389482]
[1764703151402,0.04534879,140.12,140.1,2.99]
[1764703163715,9.38031286,140.16,140.1,2.99]
[1764703164718,0.05471671,140.14,140.1,2.99]
[1764703165322,6.47571671,140.14,140.1,2.99]
[1764703169823,6.4215,140.13,140.1,2.99]
[1764703172024,0.05471671,140.14,140.1,2.99]
[1764703173032,0.05471671,140.14,140.1,5.95011286]
[1764703173322,0.05471671,140.14,140.12,9.4118]
[1764703173720,0.05471671,140.14,140.13,2.99]
[1764703175019,3.82011286,140.18,140.13,2.99]
[1764703176022,0.86,140.17,140.13,2.99]
[1764703176228,3.82011286,140.16,140.13,2.99]
[1764703176429,0.86,140.16,140.13,2.99]
[1764703176725,0.86,140.16,140.12,0.04703212]
[1764703177230,0.86,140.16,140.12,3.28703212]
[1764703178816,0.86,140.15,140.12,3.28703212]
[1764703179629,0.86,140.14,140.12,0.04703212]
[1764703181229,0.86,140.14,140.12,3.23703212]
[1764703181622,0.86,140.16,140.12,3.23703212]
[1764703182720,0.86,140.15,140.12,3.23703212]
[1764703187123,7.2802,140.16,140.13,3.19]
[1764703189322,0.86,140.14,140.12,0.04703212]
[1764703189929,7.2811,140.14,140.12,0.04703212]
[1764703190934,7.2811,140.14,140.12,3.23703212]
[1764703193638,0.86,140.13,140.12,0.04703212]
[1764703193834,61.94,140.13,140.12,0.04703212]
[1764703194248,0.81,140.1,140.09,11.78]
[1764703195543,0.52,140.08,140.06,17.82805781]
[1764703195734,0.52,140.07,140.06,17.82805781]
[1764703196333,0.52,140.07,140.06,11.15]
[1764703196736,4.99464364,140.07,140.06,14.34]
[1764703197131,4.99464364,140.07,140.06,11.15]
[1764703197334,5.51464364,140.07,140.06,11.15]
[1764703197533,4.99464364,140.07,140.06,11.15]
[1764703197736,4.99241924,140.07,140.06,11.15]
[1764703199143,5.51241924,140.07,140.06,11.15]
[1764703204141,0.52,140.03,140.0,7.65]
[1764703204448,61.62,140.02,140.0,10.84]
[1764703204638,0.52,140.01,140.0,7.65]
[1764703205047,61.15243068,140.02,140.0,10.84]
[1764703205234,0.05243068,140.02,140.01,3.19]
[1764703214551,6.425,140.06,140.01,3.19]
[1764703214755,10.19325602,140.09,140.01,3.19]
[1764703215061,61.12,140.07,140.01,3.19]
[1764703215256,6.4251,140.05,140.01,3.19]
[1764703215658,0.04513815,140.04,140.03,3.22]
[1764703220764,66.11241924,140.08,140.03,3.22]
[1764703220966,42.23664031,140.12,140.03,3.22]
[1764703220967,4.99241924,140.1,140.03,3.22]
[1764703221165,61.12,140.09,140.03,3.22]
[1764703221466,6.4241,140.08,140.03,3.22]
[1764703221870,0.04547425,140.07,140.05,3.22]
[1764703222066,6.46967425,140.07,140.05,3.22]
[1764703223874,0.04547425,140.07,140.05,3.22]
[1764703225865,5.60241924,140.1,140.05,3.22]
[1764703226072,61.12,140.12,140.05,3.22]
[1764703226672,0.66,140.13,140.05,3.22]
[1764703226874,0.0526071,140.1,140.09,3.22]
[1764703227072,0.04713245,140.11,140.09,3.22]
[1764703227670,6.46953245,140.11,140.09,3.22]
[1764703235478,0.66,140.1,140.08,0.04997021]
[1764703235677,0.66,140.09,140.08,0.04997021]
[1764703235880,0.66,140.09,140.03,3.27]
[1764703236185,0.66,140.08,140.03,3.27]
[1764703236490,9.39283954,140.06,140.03,3.27]
[1764703236879,9.43808448,140.06,140.03,3.324073]
[1764703238782,6.46994494,140.06,140.03,3.324073]
[1764703238976,10.10808448,140.06,140.03,3.324073]
[1764703239177,6.4251,140.05,140.03,3.324073]
[1764703240491,3.63813954,140.04,140.03,0.054073]
[1764703240691,8.67464848,140.04,140.03,0.054073]
[1764703250392,69.79464848,140.04,140.03,0.054073]
[1764703251799,76.22014848,140.04,140.03,0.054073]
[1764703253598,76.22014848,140.04,140.01,9.53]
[1764703253599,7.0964,140.02,140.01,9.53]
[1764703253795,0.67,140.01,139.98,12.83]
[1764703253999,64.75813954,140.0,139.98,12.83]
[1764703254299,69.79464848,140.0,139.98,12.83]
[1764703254493,6.4278,139.99,139.98,12.83]
[1764703254694,6.4278,139.99,139.98,12.88277966]
[1764703255094,64.8095591,140.0,139.98,9.68277966]
[1764703255295,0.67,139.99,139.98,9.68277966]
[1764703255891,5.70650894,139.99,139.98,9.68277966]
[1764703256700,105.69880894,139.99,139.94,3.2]
[1764703256908,0.67,139.96,139.94,3.2]
[1764703257204,61.81,139.96,139.93,3.2]
[1764703257506,68.2395,139.96,139.93,3.2]
[1764703257904,68.2395,139.96,139.93,3.24696021]
[1764703257905,61.85651804,139.96,139.93,3.24696021]
[1764703258896,2.96813954,139.95,139.93,3.24696021]
[1764703259302,3.63813954,139.95,139.93,3.24696021]
[1764703259493,8.67464848,139.95,139.93,3.24696021]
[1764703259697,8.67464848,139.95,139.93,0.04696021]
[1764703259905,0.67,139.94,139.93,0.04696021]
[1764703260492,10.06793954,139.95,139.93,0.04696021]
[1764703262200,7.0998,139.95,139.93,0.04696021]
[1764703262904,0.67,139.94,139.93,0.04696021]
[1764703263606,0.67,139.95,139.93,3.24696021]
[1764703264804,3.63813954,139.95,139.93,3.24696021]
[1764703265303,3.63813954,139.95,139.93,0.04696021]
[1764703267005,3.0,140.0,139.93,0.04696021]
[1764703267207,3.17,140.08,140.0,3.2]
[1764703267517,6.13813954,140.07,140.0,3.2]
[1764703268105,3.21869632,140.05,140.02,3.25415575]
[1764703268608,0.04869632,140.05,140.02,3.25415575]
[1764703269002,3.14869632,140.05,140.02,3.25415575]
[1764703269396,0.04869632,140.05,140.02,3.25415575]
[1764703270500,3.14869632,140.05,140.02,3.25415575]
[1764703271405,0.04869632,140.05,140.02,3.25415575]
[1764703271614,0.04869632,140.05,140.02,6.22229529]
[1764703271998,0.04869632,140.05,140.03,3.03]
[1764703273305,3.14869632,140.05,140.02,0.05415575]
[1764703276508,3.1,140.03,140.02,0.05415575]
[1764703277311,3.1,140.04,140.02,0.05415575]
[1764703278118,64.44869632,140.05,140.02,3.08415575]
[1764703278418,6.06813954,140.04,140.02,0.05415575]
[1764703278625,3.1,140.03,140.02,0.05415575]
[1764703281435,3.1,140.04,140.02,0.05415575]
[1764703281829,3.1,140.03,140.02,0.05415575]
[1764703285836,75.64254506,140.04,140.02,0.05415575]
[1764703286038,3.1,140.03,140.02,0.05415575]
[1764703286436,3.1,140.01,139.97,12.73]
[1764703286635,3.1,139.99,139.97,12.73]
[1764703286942,70.808,139.99,139.97,12.73]
[1764703287134,3.1,139.98,139.97,12.73]
[1764703288039,6.06813954,139.98,139.97,12.73]
[1764703289441,3.1,139.98,139.97,12.73]
[1764703289642,6.06813954,139.98,139.97,12.73]
[1764703291339,9.5287,139.97,139.96,0.05322778]
[1764703291540,3.1,139.96,139.91,3.03]
[1764703291741,64.36,139.95,139.91,3.03]
[1764703292237,67.69,139.95,139.91,3.03]
[1764703292445,0.05105381,139.94,139.93,3.03]
[1764703299649,3.15,139.95,139.93,3.03]
[1764703300142,99.9565,140.04,139.94,3.08]
[1764703300337,3.12,140.02,139.97,3.08]
[1764703300539,6.4279,139.99,139.98,3.12503045]
[1764703301949,6.4279,139.99,139.98,0.04503045]
[1764703302247,6.4279,139.99,139.98,3.12503045]
[1764703303740,6.4279,139.99,139.98,0.04503045]
[1764703304939,3.12,139.99,139.98,0.04503045]
[1764703306645,64.42,139.99,139.98,0.04503045]
[1764703306844,3.17074259,140.01,139.98,0.04503045]
[1764703307042,64.42,139.99,139.98,0.04503045]
[1764703315951,66.23188224,140.0,139.98,3.12503045]
[1764703316855,69.35188224,140.0,139.98,3.12503045]
[1764703317564,69.35188224,140.0,139.98,0.04503045]
[1764703318160,4.97188224,139.99,139.98,0.04503045]
[1764703319362,8.09188224,139.99,139.98,0.04503045]
[1764703321266,3.12,139.98,139.93,16.22]
[1764703321468,3.12,139.96,139.93,13.14]
[1764703321764,3.12,139.95,139.93,16.22]
[1764703322058,8.09188224,139.96,139.93,16.22]
[1764703322264,8.13854535,139.96,139.93,16.26949398]
[1764703323559,3.16666311,139.96,139.93,16.26949398]
[1764703323954,0.04666311,139.96,139.94,3.08]
[1764703324159,3.16666311,139.96,139.93,13.18949398]
[1764703324353,3.16666311,139.96,139.93,16.26949398]
[1764703325162,8.18253773,139.96,139.93,16.26949398]
[1764703325363,3.16666311,139.96,139.93,16.26949398]
[1764703325762,8.18253773,139.96,139.93,16.26949398]
[1764703325962,3.16666311,139.96,139.93,3.12949398]
[1764703326365,3.12,139.95,139.93,0.04949398]
[1764703326573,8.13587462,139.94,139.93,0.04949398]
[1764703329574,74.03895152,139.94,139.93,0.04949398]
[1764703330566,3.06,139.92,139.9,9.66]
[1764703330768,8.07587462,139.91,139.9,9.66]
[1764703330970,8.07587462,139.92,139.9,9.66]
[1764703331168,5.01587462,139.91,139.9,9.66]
[1764703332467,5.02273169,139.91,139.9,9.66]
[1764703332968,5.02273169,139.91,139.9,12.69]
[1764703333269,0.05197439,139.92,139.9,12.69]
[1764703333663,8.13470608,139.92,139.9,12.69]
[1764703333863,3.11197439,139.92,139.9,12.69]
[1764703334058,8.13470608,139.92,139.9,12.69]
[1764703334264,3.11197439,139.92,139.9,12.69]
[1764703334465,8.13470608,139.92,139.9,12.69]
[1764703334668,3.11197439,139.92,139.9,12.69]
[1764703334867,5.07470608,139.92,139.9,12.69]
[1764703336472,5.07470608,139.92,139.91,3.03]
[1764703337175,0.05197439,139.92,139.91,3.03]
[1764703344989,0.05197439,139.92,139.91,3.03]
[1764703347481,5.02273169,139.97,139.92,3.03]
[1764703347780,105.02233169,139.98,139.94,3.03]
[1764703348380,6.47653008,139.97,139.96,3.03]
[1764703348887,0.04783008,139.97,139.96,3.03]
[1764703350075,5.02273169,140.01,139.96,3.03]
[1764703350295,5.02273169,140.0,139.96,3.03]
[1764703350478,3.06,140.01,139.96,3.03]
[1764703350683,3.06,139.99,139.96,3.03]
[1764703351381,3.10942791,139.99,139.96,3.0833833]
[1764703354381,3.10942791,139.99,139.96,0.0533833]
[1764703354582,3.06,139.97,139.96,0.0533833]
[1764703355079,8.08273169,139.97,139.96,0.0533833]
[1764703355282,3.06,139.97,139.96,0.0533833]
[1764703359294,8.08273169,139.97,139.96,0.0533833]
[1764703359594,3.06,139.97,139.96,0.0533833]
[1764703359792,8.08273169,139.97,139.96,0.0533833]
[1764703359995,3.06,139.97,139.96,0.0533833]
[1764703360186,8.08273169,139.97,139.96,0.0533833]
[1764703360387,3.06,139.97,139.96,0.0533833]
[1764703360587,8.08273169,139.97,139.96,0.0533833]
[1764703364891,3.0,139.97,139.96,0.0533833]
[1764703365091,8.02273169,139.97,139.96,0.0533833]
[1764703365390,3.0,139.97,139.96,0.0533833]
[1764703365690,5.02273169,139.97,139.96,3.0633833]
[1764703365886,5.02273169,139.98,139.96,3.0633833]
[1764703366294,3.0,139.98,139.96,3.0633833]
[1764703366493,3.04942791,139.99,139.96,3.0633833]
[1764703366700,5.0721596,139.99,139.96,3.0633833]
[1764703366891,0.04942791,139.99,139.96,3.0633833]
[1764703367091,8.0721596,139.99,139.96,3.0633833]
[1764703367300,3.04942791,139.99,139.96,3.0633833]
[1764703367595,0.04942791,139.99,139.96,3.0633833]
[1764703367996,0.04942791,139.99,139.96,6.03455506]
[1764703368296,3.0,140.03,139.99,3.01]
[1764703368487,3.0,140.02,139.99,3.01]
[1764703369189,3.05077843,140.02,139.99,3.05525454]
[1764703371601,0.05077843,140.02,139.99,3.05525454]
[1764703374800,0.05077843,140.02,140.0,3.01]
[1764703382420,0.05077843,140.02,140.0,9.437]
[1764703382718,0.05077843,140.02,140.01,3.01]
[1764703390616,3.19077843,140.02,139.99,3.20525454]
[1764703391710,9.61727843,140.02,139.99,3.20525454]
[1764703392322,9.567,140.01,139.99,3.20525454]
[1764703393215,9.567,140.01,139.99,0.04525454]
[1764703394215,9.567,140.01,139.99,3.20525454]
[1764703396821,3.14,140.01,139.99,3.20525454]
[1764703407330,3.14,140.01,139.99,0.04525454]
[1764703407531,3.14,140.01,139.99,3.20525454]
[1764703408026,3.14,140.01,139.99,0.04525454]
[1764703408224,3.14,140.0,139.99,0.04525454]
[1764703409233,5.02273169,140.0,139.99,3.20525454]
[1764703409429,8.16273169,140.01,139.99,3.20525454]
[1764703409729,5.02273169,140.0,139.99,3.20525454]
[1764703410222,8.16273169,140.0,139.99,0.04525454]
[1764703410636,11.13390345,140.0,139.99,0.04525454]
[1764703415835,12.55390345,140.0,139.99,0.04525454]
[1764703416642,3.0,139.99,139.96,9.33]
[1764703416940,3.0,139.97,139.96,9.33]
[1764703417140,8.02273169,139.97,139.96,9.33]
[1764703420741,69.18273169,139.97,139.96,9.33]
[1764703422440,64.16,139.97,139.96,9.33]
[1764703422642,3.0,139.97,139.96,9.33]
[1764703423343,9.4287,139.97,139.96,9.33]
[1764703424138,6.47991169,139.98,139.97,3.02]
[1764703424441,0.05161169,139.98,139.97,3.02]
[1764703424743,0.05161169,139.98,139.97,4.44]
[1764703424950,69.17934905,140.03,139.98,3.02]
[1764703425144,4.95934905,140.02,139.98,3.02]
[1764703425355,64.22,140.03,139.98,3.02]
[1764703425563,4.95907417,140.05,140.01,3.02]
[1764703425761,3.04,140.14,140.05,2.47]
[1764703425952,3.04,140.14,140.06,2.47]
[1764703426150,0.04615212,140.11,140.09,0.04748569]
[1764703426762,6.46865212,140.11,140.09,0.04748569]
[1764703428450,9.50865212,140.11,140.09,0.04748569]
[1764703428868,3.08615212,140.11,140.09,0.04748569]
[1764703436467,0.04615212,140.11,140.09,2.51748569]
[1764703441269,3.08615212,140.11,140.09,2.51748569]
[1764703441469,0.04615212,140.11,140.09,2.51748569]
[1764703442176,7.68261064,140.1,140.09,0.04748569]
[1764703446588,3.04,140.09,140.03,2.47]
[1764703446786,3.04,140.07,140.03,2.47]
[1764703446974,64.28,140.07,140.03,2.47]
[1764703447576,0.05351611,140.06,140.04,2.57447086]
[1764703447879,0.05351611,140.06,140.04,2.56893547]
[1764703454491,3.03351611,140.06,140.04,2.56893547]
[1764703454885,0.05351611,140.06,140.04,2.56893547]
[1764703459098,3.03351611,140.06,140.04,2.56893547]
[1764703459284,0.05351611,140.06,140.04,2.56893547]
[1764703464492,0.05351611,140.06,140.04,14.72893547]
[1764703464795,2.98,140.05,140.04,12.20893547]
[1764703464994,2.98,140.04,140.0,2.52]
[1764703465895,9.4057,140.04,140.0,2.52]
[1764703466095,9.4057,140.04,140.01,2.56691287]
[1764703466296,9.45124739,140.04,140.01,2.56691287]
[1764703467300,9.406,140.03,140.01,2.56691287]
[1764703467600,2.98,140.02,140.01,0.04691287]
[1764703471201,70.586,140.03,140.01,2.56691287]
[1764703471602,70.586,140.03,140.01,0.04691287]
[1764703471902,2.98,140.02,140.01,0.04691287]
[1764703472102,9.4064,140.02,140.01,0.04691287]
[1764703472306,6.4264,140.02,140.01,2.56691287]
[1764703472604,9.4064,140.02,140.01,0.04691287]
[1764703474801,2.98,140.02,140.01,0.04691287]
[1764703478612,3.26,140.03,140.01,2.56691287]
[1764703478911,64.42,140.03,140.01,2.56691287]
[1764703479797,3.2,140.02,140.01,0.04691287]
[1764703482406,6.17016455,140.02,140.01,0.04691287]
[1764703483614,12.59656455,140.02,140.01,0.04691287]
[1764703484007,73.75656455,140.02,140.01,0.04691287]
[1764703490118,12.59656455,140.02,140.01,0.04691287]
[1764703490323,73.75656455,140.02,140.01,0.04691287]
[1764703493526,9.67154739,140.04,140.01,2.56691287]
[1764703493824,64.36,140.03,140.01,2.56691287]
[1764703495118,9.67154739,140.04,140.01,2.56691287]
[1764703495322,64.38,140.03,140.01,2.56691287]
[1764703500943,61.20554739,140.04,140.01,2.56691287]
[1764703501241,3.2,140.03,140.01,2.56691287]
[1764703502134,64.40554739,140.04,140.01,2.56691287]
[1764703502542,3.24554739,140.04,140.01,2.56691287]
[1764703502740,0.04554739,140.04,140.01,8.99361287]
[1764703502937,64.36,140.08,140.04,2.52]
[1764703503332,3.2,140.07,140.04,2.52]
[1764703503933,0.04944818,140.07,140.04,2.57401514]
[1764703504142,0.04944818,140.07,140.06,9.16764664]
[1764703504339,0.04944818,140.07,140.06,2.52]
[1764703508238,6.4212,140.14,140.08,2.52]
[1764703508239,3.2,140.12,140.08,2.52]
[1764703508442,3.2,140.11,140.08,2.52]
[1764703509150,3.2,140.11,140.08,0.05361824]
[1764703509151,3.2175311,140.11,140.08,0.05361824]
[1764703510152,3.17,140.09,140.08,0.05361824]
[1764703511347,3.17,140.08,140.02,6.4261]
[1764703511556,3.17,140.04,140.02,8.9461]
[1764703511745,3.17,140.04,140.01,2.52]
[1764703512053,3.17,140.04,140.02,2.52]
[1764703512553,3.22005487,140.04,140.02,0.05362305]
[1764703516856,6.14016455,140.03,140.02,0.05362305]
[1764703517957,3.17,140.03,140.02,0.05362305]
[1764703526859,6.22021942,140.04,140.02,2.57362305]
[1764703527060,0.05005487,140.04,140.02,2.57362305]
[1764703528562,0.05005487,140.04,140.02,8.99992305]
[1764703528862,0.05005487,140.04,140.03,2.52]
[1764703534870,0.05005487,140.04,140.03,8.946]
[1764703552577,0.05005487,140.04,140.03,15.59364664]
[1764703555473,3.21,140.09,140.08,6.4237]
[1764703560682,3.21,140.08,140.07,14.20785206]
[1764703567282,0.05487261,140.1,140.08,2.52]
[1764703567486,0.05487261,140.1,140.09,2.52]
[1764703568287,3.26487261,140.1,140.09,2.52]
[1764703568691,3.26487261,140.1,140.09,8.9432]
[1764703570290,0.05487261,140.1,140.09,8.9432]
[1764703571291,3.08,140.15,140.13,6.4213]
[1764703571590,3.08,140.15,140.11,2.52]
[1764703572181,3.08,140.15,140.12,0.05233936]
[1764703572384,3.12496277,140.14,140.13,6.4212]
[1764703572992,3.12496277,140.14,140.12,11.47233936]
[1764703579697,3.12496277,140.14,140.12,13.99233936]
[1764703581089,3.12496277,140.14,140.12,11.47233936]
[1764703581495,3.08,140.13,140.07,10.25]
[1764703582497,3.08,140.13,140.09,0.05105254]
[1764703583198,9.5014,140.13,140.09,0.05105254]
[1764703583407,6.4214,140.13,140.09,0.05105254]
[1764703585599,6.4214,140.13,140.1,8.33]
[1764703587496,6.4219,140.12,140.1,8.33]
[1764703590307,6.4219,140.12,140.1,11.55]
[1764703590708,6.46626277,140.14,140.1,11.55]
[1764703591014,61.12,140.13,140.11,3.22]
[1764703592210,67.5414,140.13,140.11,3.22]
[1764703592405,67.5414,140.13,140.1,11.55]
[1764703594613,6.4214,140.13,140.1,11.55]
[1764703594809,61.12,140.12,140.1,11.55]
[1764703595903,67.542,140.12,140.1,11.55]
[1764703596614,67.542,140.12,140.11,3.07]
[1764703597115,6.422,140.12,140.11,3.07]
[1764703597309,67.542,140.12,140.11,3.07]
[1764703600208,6.422,140.12,140.11,3.07]
[1764703600404,67.542,140.12,140.11,3.07]
[1764703600817,6.422,140.12,140.11,3.07]
[1764703601004,67.542,140.12,140.11,3.07]
[1764703602516,6.422,140.12,140.11,3.07]
[1764703602714,67.542,140.12,140.11,3.07]
[1764703602912,61.12,140.12,140.11,3.07]
[1764703603918,0.04496277,140.14,140.11,3.07]
[1764703604109,61.1,140.13,140.11,3.07]
[1764703604619,67.5215,140.13,140.11,3.07]
[1764703604917,6.4215,140.13,140.11,3.07]
[1764703605114,61.1,140.12,140.11,3.07]
[1764703606515,6.4215,140.13,140.11,3.07]
[1764703606711,61.1,140.12,140.11,3.07]
[1764703607213,6.46596277,140.14,140.11,3.07]
[1764703607517,61.1,140.13,140.11,3.07]